[Event "Rudolf Teschner GT 2022"]
[Site "Berlin"]
[Date "2022.05.27"]
[Round "4.6"]
[White "Gebigke, Martin"]
[Black "Langrock, Hannes"]
[Result "0-1"]
[ECO "D24"]
[WhiteElo "2081"]
[BlackElo "2351"]
[Annotator "TA"]
[PlyCount "66"]
[EventDate "2022.05.25"]
[EventType "swiss"]
[EventCountry "GER"]
[SourceTitle "playchess.com"]
[Source "ChessBase"]
[SourceQuality "1"]
[TimeControl "5400+30"]

{[%evp 9,66,27,16,0,0,0,0,0,0,-20,-10,0,0,-18,0,0,0,0,0,0,0,0,0,-138,0,-137,-144,-162,-117,-157,-169,-156,-137,-181,-188,-224,-212,-318,-313,-354,-370,-309,-329,-483,-479,-513,-498,-497,-433,-436,-436,-417,-427,-412,-380,-521,-514,-486,-469]} 1. d4 {[%emt 0:00:03]} Nf6 {[%emt 0:00:39]} 2. c4 {[%emt 0:00:22]} e6 {[%emt 0:00:19]} 3. Nf3 {[%emt 0:00:44]} d5 {[%emt 0:00:14]} 4. Nc3 {[%emt 0:00:29]} dxc4 {[%emt 0:00:18]} 5. e4 {[%emt 0:00:36]} Bb4 {[%emt 0:00:49]} 6. Bxc4 {[%emt 0:01:49] D24: Queen's Gambit Accepted: 3 Nf3 Nf6 4 Nc3.} (6. Bg5 {seems wilder.} c5 7. Bxc4 cxd4 8. Nxd4 Qa5 9. Bxf6 Bxc3+ 10. Kf1) 6... Nxe4 {[%emt 0:00:46]} 7. O-O {[%emt 0:00:18]} Nxc3 {[%emt 0:00:29]} 8. bxc3 {[%emt 0:00:10] The position is equal.} ({But not} 8. Qb3 Nd5 9. Bxd5 Qxd5 $17) 8... Be7 {[%emt 0:00:19]} 9. Bf4 {[%emt 0:02:05]} O-O {[%emt 0:02:02]} 10. Qc2 {[%emt 0:02:32]} Nd7 {[%emt 0:01:47][%cal Bb8d7,Bd7f6,Bf6h5,Bh5g3][%mdl 32]} 11. Rfe1 {[%emt 0:06:04]} b6 {[%emt 0:04:53]} 12. Bd3 {[%emt 0:05:10] [#]} Nf6 $146 {[%emt 0:23:32]} ({Predecessor:} 12... g6 13. Be4 Rb8 14. Rad1 Bb7 15. d5 exd5 16. Bxd5 Bxd5 17. Rxd5 Bd6 18. Bxd6 cxd6 19. Rxd6 {½-½ (27) Peralta,F (2551)-Asis Gargatagli,H (2520) Barcelona 2017}) 13. Ne5 {[%emt 0:03:27]} Bb7 {[%emt 0:00:27]} 14. Re3 {[%emt 0:20:44]} Qd5 {[%emt 0:04:22][%csl Gb7][%cal Rd5g2]} 15. Rg3 {[%emt 0:13:28]} Nh5 $1 {[%emt 0:04:04][%csl LRf4,LRg3]} 16. Bxh7+ {[%emt 0:01:35]} Kh8 {[%emt 0:00:06]} 17. Re1 {[%emt 0:02:00]} Nxg3 $40 {[%emt 0:05:21][%mdl 128] Black goes for the king. Really sharp!} (17... Nxf4 18. Be4 Qd6 19. Bxb7 $18) 18. fxg3 {[%emt 0:00:06] [#] Threatens to win with Be4.} Qxg2+ {[%emt 0:13:30][%mdl 512]} 19. Qxg2 {[%emt 0:00:07]} Bxg2 {[%emt 0:00:02]} 20. Bg6 {[%emt 0:04:01]} Bd5 {[%emt 0:02:36] Strongly threatening ...f6.} 21. Nxf7+ {[%emt 0:11:45]} Kg8 {[%emt 0:00:07]} 22. Ng5 {[%emt 0:09:08]} Bxa2 {[%emt 0:05:56]} 23. Bh7+ {[%emt 0:05:16]} (23. Nxe6 $142 Bxe6 24. Rxe6) 23... Kh8 $19 {[%emt 0:00:05]} 24. Be4 {[%emt 0:00:14][%cal Og5e6]} Bxg5 {[%emt 0:02:29]} 25. Bxg5 {[%emt 0:02:43]} Bd5 {[%emt 0:00:37]} 26. Bg6 {[%emt 0:01:22]} (26. Bd3 $142) 26... a5 {[%emt 0:05:32]} 27. Be7 {[%emt 0:01:44]} Rf3 {[%emt 0:01:55]} 28. c4 {[%emt 0:04:09]} Bxc4 {[%emt 0:07:37]} 29. Be4 {[%emt 0:00:59] [#]} Rf7 {[%emt 0:00:55] And now ...Bd5 would win.} 30. Bxa8 {[%emt 0:00:27]} Rxe7 {[%emt 0:00:03]} 31. Bc6 {[%emt 0:01:06]} Rf7 {[%emt 0:01:05] Hoping for ...b5.} 32. Be8 {[%emt 0:00:50]} Rf8 {[%emt 0:01:11]} 33. Bd7 {[%emt 0:00:31]} Rd8 {[%emt 0:00:24] Weighted Error Value: White=0.40/Black=0.03 (flawless)} 0-1

[Event "Rudolf Teschner GT 2022"]
[Site "Berlin"]
[Date "2022.05.28"]
[Round "5.1"]
[White "Florstedt, Johannes"]
[Black "Van den Doel, Erik"]
[Result "1/2-1/2"]
[ECO "C45"]
[WhiteElo "2365"]
[BlackElo "2581"]
[Annotator "TA"]
[PlyCount "37"]
[EventDate "2022.05.25"]
[EventType "swiss"]
[EventCountry "GER"]
[SourceTitle "playchess.com"]
[Source "ChessBase"]
[SourceQuality "1"]
[TimeControl "5400+30"]

{[%evp 18,23,7,8,4,0,29,37]} 1. e4 {[%emt 0:00:02]} e5 {[%emt 0:06:40]} 2. Nf3 {[%emt 0:01:38]} Nc6 {[%emt 0:01:12]} 3. d4 {[%emt 0:01:14]} exd4 {[%emt 0:00:05]} 4. Nxd4 {[%emt 0:00:08]} Nf6 {[%emt 0:00:16][%cal Bg8f6,Bf6d5,Bd5b6][%mdl 32]} 5. Nxc6 {[%emt 0:00:17]} bxc6 {[%emt 0:00:03]} 6. e5 {[%emt 0:00:10]} Qe7 {[%emt 0:00:05]} 7. Qe2 {[%emt 0:00:06]} Nd5 {[%emt 0:00:03]} 8. c4 {[%emt 0:00:33][%cal Bc2c4,Bc4c5][%mdl 32]} Nb6 {[%emt 0:01:58]} 9. Nc3 {[%emt 0:00:19]} Qe6 {[%emt 0:00:54]} 10. Qe4 {[%emt 0:02:04]} g6 {[%emt 0:02:47] C45: Scotch Game.} 11. Bd2 {[%emt 0:01:13]} Bg7 {[%emt 0:03:45]} 12. c5 $1 {[%emt 0:03:18] [#]  Weighted Error Value: White=0.00 (flawless) /Black=0.12 (very precise)} {Predecessor:} Nd5 $146 13. Bc4 Qxe5 14. Qxe5+ Bxe5 15. Bxd5 cxd5 16. O-O-O O-O 17. Nxd5 Rb8 18. Bc3 Bxc3 19. Nxc3 {1-0 (49) Yu,Y (2729)-Dominguez Perez,L (2739) Doha 2016} 1/2-1/2

[Event "Rudolf Teschner GT 2022"]
[Site "Berlin"]
[Date "2022.05.28"]
[Round "5.2"]
[White "Langrock, Hannes"]
[Black "Klenburg, Michael"]
[Result "1/2-1/2"]
[ECO "A49"]
[WhiteElo "2351"]
[BlackElo "2346"]
[Annotator "TA"]
[PlyCount "70"]
[EventDate "2022.05.25"]
[EventType "swiss"]
[EventCountry "GER"]
[SourceTitle "playchess.com"]
[Source "ChessBase"]
[SourceQuality "1"]
[TimeControl "5400+30"]

{[%evp 19,70,10,20,0,-2,-17,32,-9,-8,0,-19,-17,-24,-15,0,0,0,0,10,17,65,0,70,0,23,0,0,0,0,-12,0,0,0,0,0,-12,-20,-28,-16,-11,-10,-7,0,0,0,-83,-90,-89,-83,-83,0,0,0]} 1. d4 {[%emt 0:01:32]} d6 {[%emt 0:00:38]} 2. Nf3 {[%emt 0:00:20]} Nf6 {[%emt 0:00:19]} 3. g3 {[%emt 0:00:17]} g6 {[%emt 0:00:21]} 4. Bg2 {[%emt 0:00:15]} Bg7 {[%emt 0:00:23]} 5. O-O {[%emt 0:00:37]} O-O {[%emt 0:00:20]} 6. b3 {[%emt 0:00:19]} c5 {[%emt 0:01:12]} 7. Bb2 {[%emt 0:01:36]} cxd4 {[%emt 0:00:39]} 8. Nxd4 {[%emt 0:00:11]} d5 {[%emt 0:00:17]} 9. c4 {[%emt 0:00:33]} dxc4 {[%emt 0:01:26]} 10. bxc4 {[%emt 0:00:55]} Qb6 {[%emt 0:00:32]} 11. Qb3 {[%emt 0:03:30][%cal Ob1c3] A49: 1 d4 Nf6 2 Nf3 g6 3 g3: Anti-King's Indian systems.} Nfd7 {[%emt 0:02:08]} 12. e3 {[%emt 0:24:59]} Nc6 {[%emt 0:04:07] [#]} (12... e5 $1 $11 {is more appropriate.} 13. Nc2 Nc5) 13. Na3 $146 {[%emt 0:10:21] White is slightly better.} (13. Nc3 $5 {[%cal Rc3d5]}) ({Predecessor:} 13. Rd1 Na5 14. Qc2 Nxc4 15. Qxc4 Qxb2 16. Nc3 Ne5 17. Qc7 Ng4 18. Ne4 Bxd4 19. exd4 Bf5 20. Qc3 Qxc3 21. Nxc3 {0-1 (38) Aravindh,C (2641)-Gukesh,D (2563) Chess.com INT 2020}) 13... Nxd4 {[%emt 0:11:30]} (13... Nc5 {feels hotter.} 14. Qxb6 axb6 15. Nab5 Nb4) 14. exd4 {[%emt 0:00:16]} Bxd4 {[%emt 0:00:22]} 15. Bxd4 {[%emt 0:00:14]} Qxd4 {[%emt 0:00:07]} 16. Rfd1 {[%emt 0:01:13]} Qf6 {[%emt 0:06:09]} 17. Nb5 {[%emt 0:01:31]} Qb6 {[%emt 0:05:44] Inhibits Nc7.} 18. a4 {[%emt 0:06:10]} a5 {[%emt 0:04:03]} 19. Rd5 {[%emt 0:00:55]} Qf6 {[%emt 0:08:52]} (19... Rb8 $11 {feels stronger.}) 20. Re1 {[%emt 0:06:14]} (20. Rad1 $1 $14) 20... e6 {[%emt 0:06:44]} ({Black should try} 20... Nb6 $11 21. Rc5 Rd8) 21. Rd6 {[%emt 0:02:52]} (21. Rdd1 $14) 21... Rb8 {[%emt 0:05:47]} 22. Na7 {[%emt 0:07:15][%mdl 1024] White has compensation.} Nc5 {[%emt 0:03:59]} 23. Qb5 {[%emt 0:09:31]} Qc3 {[%emt 0:04:02]} 24. Rb1 {[%emt 0:05:32]} Qc2 {[%emt 0:06:36][%cal Oc8d7] [#] Hoping for ...Bd7!} 25. Ra1 {[%emt 0:00:43]} Ne4 {[%emt 0:01:46]} (25... Qc3 $5 {[%cal Rc3a1]} 26. Rad1 b6 $11) 26. Bxe4 {[%emt 0:02:29] Active counter play!} Qxe4 {[%emt 0:00:26]} 27. c5 {[%emt 0:00:35]} Ra8 {[%emt 0:05:29]} 28. Nxc8 {[%emt 0:01:23]} Rfxc8 {[%emt 0:00:06]} 29. Rd7 $1 {[%emt 0:00:18]} Qc6 {[%emt 0:01:31]} 30. Rb1 {[%emt 0:04:21]} Ra7 {[%emt 0:05:21]} (30... Rab8 {is more complex.} 31. Qxc6 bxc6 32. Rxb8 Rxb8 33. Ra7 Rb1+) 31. Qxc6 {[%emt 0:00:57]} Rxc6 {[%emt 0:00:06]} 32. Rbxb7 {[%emt 0:00:12]} (32. Rd8+ $11 {keeps the balance.} Kg7 33. Rb5) 32... Rxb7 $17 {[%emt 0:00:10]} 33. Rxb7 {[%emt 0:00:06]} Rxc5 {[%emt 0:00:04] [#] And now ...Rc4 would win.} 34. Rb5 {[%emt 0:00:11]} Rc1+ {[%emt 0:00:27]} (34... Rd5 $17 {...Kg7 is the strong threat.} 35. Rb8+ Kg7) 35. Kg2 $11 {[%emt 0:00:03]} Ra1 {[%emt 0:00:09] Weighted Error Value: White=0.17 (very precise) /Black=0.21 (precise)} 1/2-1/2

[Event "Rudolf Teschner GT 2022"]
[Site "Berlin"]
[Date "2022.05.28"]
[Round "5.3"]
[White "Tscheuschner, Georg"]
[Black "Brustkern, Juergen"]
[Result "1/2-1/2"]
[ECO "D07"]
[WhiteElo "2150"]
[BlackElo "2179"]
[Annotator "TA"]
[PlyCount "75"]
[EventDate "2022.05.25"]
[EventType "swiss"]
[EventCountry "GER"]
[SourceTitle "playchess.com"]
[Source "ChessBase"]
[SourceQuality "1"]
[TimeControl "5400+30"]

{[%evp 10,75,49,52,57,69,56,60,111,87,162,43,44,-20,-7,-35,15,30,14,31,26,34,33,29,31,6,13,15,99,92,94,81,112,53,149,157,133,150,153,158,150,141,164,163,151,146,156,118,141,25,22,0,73,71,65,71,75,83,72,8,32,0,0,0,0,0,5,0]} 1. Nf3 {[%emt 0:00:35]} d5 {[%emt 0:04:16]} 2. e3 {[%emt 0:00:06]} Nc6 {[%emt 0:00:09]} 3. d4 {[%emt 0:00:11]} Bg4 {[%emt 0:00:12]} 4. c4 {[%emt 0:00:16]} e5 {[%emt 0:00:32]} 5. Qb3 {[%emt 0:00:20]} Bxf3 {[%emt 0:00:06]} 6. gxf3 {[%emt 0:00:17]} Nge7 {[%emt 0:00:06] D07: Queen's Gambit: Chigorin Defence.} (6... exd4 7. cxd5 Ne5 8. exd4 $16) 7. Nc3 {[%emt 0:06:57][%cal Rc4d5]} (7. Qxb7 Rb8 8. Qa6 exd4 $15) 7... exd4 {[%emt 0:00:27]} 8. Nxd5 {[%emt 0:01:41]} Rb8 {[%emt 0:00:11] [#]} (8... Qd6 $14) 9. Bd2 $1 $16 {[%emt 0:10:26] White is more active.} Ng6 {[%emt 0:04:08]} (9... b5 $16) 10. exd4 {[%emt 0:15:11]} (10. f4 $18) 10... Nxd4 $14 {[%emt 0:14:10]} 11. Qe3+ {[%emt 0:00:07]} (11. Qc3 $1 $14 Ne6 12. f4) 11... Ne6 $11 {[%emt 0:00:08] [#]} 12. O-O-O $146 {[%emt 0:24:31] And now f4 would win.} ({Predecessor:} 12. f4 Bc5 13. Qe2 O-O 14. O-O-O Qh4 15. f5 Nd4 16. Qd3 Ne5 17. Qc3 c6 18. Be3 cxd5 19. Bxd4 {1-0 (28) Polushkina,S (2084)-Prueske,W Dortmund 1999}) 12... Bc5 {[%emt 0:03:22]} (12... c6 $1 $15 13. Qe4 Bd6) 13. Qe4 {[%emt 0:00:05]} O-O {[%emt 0:01:29]} 14. h4 $1 {[%emt 0:05:18][%cal Bh2h4,Bh4h5][%mdl 32] h5 is the strong threat.} c6 {[%emt 0:06:14]} (14... Bxf2 $2 15. h5 c6 16. hxg6 cxd5 17. gxf7+ (17. cxd5 Ng5 $18) (17. gxh7+ Kh8 $16) 17... Kxf7 18. cxd5 $18) 15. h5 {[%emt 0:01:41]} cxd5 {[%emt 0:04:45]} 16. cxd5 {[%emt 0:00:04]} Ng5 {[%emt 0:05:14]} 17. Qg4 {[%emt 0:02:44]} Ne5 {[%emt 0:06:24]} (17... Qxd5 $2 18. hxg6 (18. Bxg5 Be3+ 19. Bxe3 Rbc8+ 20. Bc4 Qxc4+ 21. Qxc4 Rxc4+ 22. Kb1 Ne5 $16) (18. Qxg5 Qxa2 19. Bc3 Ba3 $15) 18... Qxf3 {[#]} 19. Qxg5 $1 $18 (19. gxh7+ Kh8 $16)) 18. Qxg5 {[%emt 0:00:06]} Qxg5 {[%emt 0:06:11]} (18... Nxf3 $11 {remains equal.} 19. Qxd8 Rbxd8) 19. Bxg5 $16 {[%emt 0:01:18]} f6 {[%emt 0:02:59]} 20. Bf4 {[%emt 0:00:56]} Bd6 {[%emt 0:03:01]} 21. Bh3 {[%emt 0:04:35]} (21. Kb1 $16) 21... g5 {[%emt 0:04:40]} (21... Nd3+ $1 $14 22. Rxd3 Bxf4+ 23. Kb1 Bd6) 22. Be6+ {[%emt 0:05:17]} Kh8 {[%emt 0:00:31]} 23. Bg3 {[%emt 0:02:54]} Rbd8 {[%emt 0:01:07]} 24. f4 {[%emt 0:01:27]} Nf7 {[%emt 0:05:52]} 25. Rd4 {[%emt 0:00:24]} h6 {[%emt 0:02:15]} 26. Rhd1 {[%emt 0:02:39]} Kg7 {[%emt 0:00:27]} 27. R1d3 {[%emt 0:02:42]} Rfe8 {[%emt 0:02:25]} 28. fxg5 {[%emt 0:01:52]} hxg5 {[%emt 0:01:49]} 29. Bxf7 {[%emt 0:02:11]} ({White should play} 29. Kc2 $16) 29... Kxf7 $11 {[%emt 0:00:09]} 30. Rc4 {[%emt 0:03:20]} f5 {[%emt 0:01:32]} (30... Re7 $11) 31. Bxd6 $16 {[%emt 0:00:15]} Rxd6 {[%emt 0:00:06][%mdl 4096] Endgame KRR-KRR} 32. Rc7+ {[%emt 0:00:11]} Re7 {[%emt 0:00:04]} 33. Rxe7+ {[%emt 0:02:59]} Kxe7 {[%emt 0:00:08]} 34. Rc3 {[%emt 0:02:00]} (34. Rb3 $16) 34... Kd7 {[%emt 0:00:39]} 35. Rg3 {[%emt 0:00:25]} g4 {[%emt 0:00:47] The position is equal.} 36. f3 {[%emt 0:00:12]} Rxd5 {[%emt 0:01:01]} 37. Kc2 {[%emt 0:01:40]} gxf3 {[%emt 0:01:59]} 38. Rxf3 {[%emt 0:00:04] Blacks defense is rewarded with a draw.  Weighted Error Value: White=0.23 (precise) /Black=0.26 (precise)} 1/2-1/2

[Event "Rudolf Teschner GT 2022"]
[Site "Berlin"]
[Date "2022.05.28"]
[Round "5.4"]
[White "Solberg, Joachim"]
[Black "Tschernatsch, Johannes"]
[Result "0-1"]
[ECO "B22"]
[WhiteElo "2189"]
[BlackElo "2358"]
[Annotator "TA"]
[PlyCount "56"]
[EventDate "2022.05.25"]
[EventType "swiss"]
[EventCountry "GER"]
[SourceTitle "playchess.com"]
[Source "ChessBase"]
[SourceQuality "1"]
[TimeControl "5400+30"]

{[%evp 16,56,-20,-14,6,0,0,-33,-36,-31,-24,-35,-29,-51,-51,-67,-60,-53,-53,-61,-56,-91,-67,-100,-122,-118,-99,-102,-63,-277,-270,-376,-213,-218,-225,-281,-279,-273,-268,-361,-359,-359,-229]} 1. e4 {[%emt 0:07:58][%cal Be2e4,Be4e5][%mdl 32]} c5 {[%emt 0:00:09]} 2. c3 {[%emt 0:00:54]} Nf6 {[%emt 0:00:10]} 3. e5 {[%emt 0:00:04]} Nd5 {[%emt 0:00:04]} 4. Nf3 {[%emt 0:00:04]} Nc6 {[%emt 0:00:16]} 5. d4 {[%emt 0:00:05]} cxd4 {[%emt 0:00:15]} 6. cxd4 {[%emt 0:00:04]} d6 {[%emt 0:00:16]} 7. exd6 {[%emt 0:00:03]} Qxd6 {[%emt 0:02:53]} 8. Nc3 {[%emt 0:03:00]} g6 {[%emt 0:03:19]} 9. Bc4 {[%emt 0:06:38]} Nxc3 {[%emt 0:00:59] B22: Sicilian: 2 c3.} 10. bxc3 {[%emt 0:00:06]} Be6 {[%emt 0:00:42] [#]} 11. Qb3 $146 {[%emt 0:04:24] [#] Hoping for d5.} ({Predecessor:} 11. Bxe6 Qxe6+ 12. Be3 Qc4 13. Qb3 Qxb3 14. axb3 Bg7 15. O-O O-O 16. d5 Ne5 17. Nxe5 Bxe5 {½-½ (58) Zhuravlev,A (1860)-Breskanu,N (2104) Bryansk 2019}) 11... Bxc4 {[%emt 0:01:59] Black is slightly better.} 12. Qxc4 {[%emt 0:09:33]} Bg7 {[%emt 0:02:30]} 13. O-O {[%emt 0:00:04]} O-O {[%emt 0:00:19]} 14. Qb3 {[%emt 0:00:42]} b6 {[%emt 0:10:09]} 15. Ba3 {[%emt 0:01:04]} Qd7 {[%emt 0:02:51]} 16. Rfe1 {[%emt 0:00:21]} Rac8 {[%emt 0:05:26]} 17. Rad1 {[%emt 0:01:27]} Rfd8 {[%emt 0:08:44]} 18. Qa4 {[%emt 0:02:23] [#]} e6 $1 {[%emt 0:01:45][%cal Oc6e5]} 19. Qa6 {[%emt 0:02:54]} Nb8 {[%emt 0:00:35]} 20. Qd3 {[%emt 0:00:32]} Qa4 {[%emt 0:00:57]} 21. Be7 {[%emt 0:00:41]} Rd5 {[%emt 0:01:41]} 22. Ne5 $2 {[%emt 0:01:15] Now White is beyond hope.} (22. h3 $15) 22... Rc7 {[%emt 0:07:47]} 23. Bb4 {[%emt 0:08:35]} a5 {[%emt 0:05:43]} (23... Bxe5 $142 24. Rxe5 Rd8) 24. c4 $19 {[%emt 0:00:36]} Rd8 {[%emt 0:01:10]} 25. Ba3 {[%emt 0:00:42]} Bxe5 {[%emt 0:01:41]} 26. Rxe5 {[%emt 0:00:03]} Rxc4 {[%emt 0:02:58]} ({Stronger than} 26... Qxc4 27. Rb5 $17) 27. Bb2 {[%emt 0:01:20]} Nc6 {[%emt 0:01:01]} ({But not} 27... Qxa2 $2 28. Re2 $19) 28. Re4 {[%emt 0:03:31]} Qc2 {[%emt 0:01:29] Weighted Error Value: White=0.49/Black=0.11 (very precise)} ({Wrong is} 28... Qxa2 $2 29. Re2 $19) 0-1

[Event "Rudolf Teschner GT 2022"]
[Site "Berlin"]
[Date "2022.05.28"]
[Round "5.5"]
[White "Spiess, Gunter"]
[Black "Eilenberg, Jonas"]
[Result "1-0"]
[ECO "D59"]
[WhiteElo "2388"]
[BlackElo "2149"]
[Annotator "TA"]
[PlyCount "115"]
[EventDate "2022.05.25"]
[EventType "swiss"]
[EventCountry "GER"]
[SourceTitle "playchess.com"]
[Source "ChessBase"]
[SourceQuality "1"]
[TimeControl "5400+30"]

{[%evp 23,115,-12,15,0,0,0,3,0,0,0,0,0,0,-4,14,0,32,39,25,41,49,43,62,52,62,50,100,87,75,72,67,17,71,12,12,12,13,0,20,20,64,61,66,66,58,63,66,39,68,60,112,95,124,122,142,141,136,127,120,112,166,116,221,220,428,415,1535,1507,1397,1044,925,971,1768,1618,1839,925,2209,2054,5281,4755,2521,2413,2567,2228,12840,12840,12843,12842,12843,12843,12844,12844,12845,12845]} 1. d4 {[%emt 0:03:54]} d5 {[%emt 0:00:06]} 2. c4 {[%emt 0:00:13]} e6 {[%emt 0:00:07]} 3. Nf3 {[%emt 0:06:28]} Nf6 {[%emt 0:00:16]} 4. Nc3 {[%emt 0:01:18]} Be7 {[%emt 0:00:31]} 5. Bg5 {[%emt 0:02:14]} h6 {[%emt 0:01:37]} 6. Bh4 {[%emt 0:03:21]} O-O {[%emt 0:00:31]} 7. e3 {[%emt 0:00:49]} b6 {[%emt 0:00:40]} 8. Rc1 {[%emt 0:02:44]} Bb7 {[%emt 0:00:10]} 9. Bd3 {[%emt 0:09:21]} c5 {[%emt 0:03:21]} 10. cxd5 {[%emt 0:01:50]} Nxd5 {[%emt 0:03:57]} 11. Bxe7 {[%emt 0:01:04]} Qxe7 {[%emt 0:00:26]} 12. Nxd5 {[%emt 0:00:57]} exd5 {[%emt 0:02:17]} 13. dxc5 {[%emt 0:00:40] D59: Queen's Gambit Declined: Tartakower Defence: Main line (8 cxd5 Nxd5).} bxc5 {[%emt 0:00:20]} 14. O-O {[%emt 0:00:19]} a5 {[%emt 0:15:20] [#]} 15. Qa4 $146 {[%emt 0:07:59] The position is equal.} ({Predecessor:} 15. Qc2 c4 16. Be2 a4 17. Rfd1 Na6 18. Qc3 Nc5 19. Qa3 Rfe8 20. Nd4 Ra6 21. Rc2 {0-1 (65) Laine,E (1797)-Ylipartanen,J (2063) ICCF email 2017}) 15... Nd7 {[%emt 0:22:15]} 16. Rfd1 {[%emt 0:02:13]} Rfd8 {[%emt 0:06:24]} 17. Qf4 {[%emt 0:10:22]} Nf8 {[%emt 0:05:10]} 18. Bf5 {[%emt 0:03:33]} d4 {[%emt 0:08:46]} 19. exd4 {[%emt 0:01:24]} Bxf3 {[%emt 0:00:10]} (19... Qf6 $5 {[%cal Rg7g6]}) 20. Qxf3 {[%emt 0:01:00]} cxd4 {[%emt 0:00:15]} 21. g3 {[%emt 0:03:34]} Qf6 {[%emt 0:03:33]} 22. Rc6 {[%emt 0:04:21]} Qe5 {[%emt 0:01:06]} 23. b3 {[%emt 0:05:53] 0x0.0024f7dd5975dp-1022s more active pieces.} Ra7 {[%emt 0:07:01]} 24. Rdc1 {[%emt 0:01:46]} Re8 {[%emt 0:04:21]} (24... g6 $14 25. Bd3 Ne6) 25. R1c5 {[%emt 0:06:00]} Qe2 {[%emt 0:01:58]} 26. Qxe2 {[%emt 0:01:18]} Rxe2 {[%emt 0:00:04]} 27. a4 {[%emt 0:02:42]} (27. Rc2 $14 Rae7 28. Kg2) 27... Rb2 {[%emt 0:02:15] [#]} (27... Rd2 $11 {keeps the balance.}) 28. Rd6 {[%emt 0:04:10]} ({White should try} 28. Rb5 $1 $16) 28... Rxb3 {[%emt 0:01:51]} 29. Rxd4 {[%emt 0:00:28]} g6 {[%emt 0:01:20]} 30. Bc2 {[%emt 0:00:17]} Rbb7 {[%emt 0:01:19]} 31. Rdd5 {[%emt 0:03:39]} Rc7 {[%emt 0:01:06]} 32. Bb3 {[%emt 0:01:48]} Rxc5 {[%emt 0:01:05]} 33. Rxc5 $14 {[%emt 0:00:01][%mdl 4096] Endgame KRB-KRN} Nd7 {[%emt 0:00:58]} 34. Rb5 {[%emt 0:00:32]} Kf8 {[%emt 0:00:49]} 35. f4 {[%emt 0:00:12]} Ke7 {[%emt 0:00:44]} 36. Kf2 {[%emt 0:00:05]} f6 {[%emt 0:01:31] Black is now going downhill.} (36... Nf6 $14) 37. Ke3 $16 {[%emt 0:00:06]} Kd6 {[%emt 0:01:13]} 38. Kd4 {[%emt 0:00:05]} Ra8 {[%emt 0:01:44]} 39. Bc2 {[%emt 0:01:21]} f5 {[%emt 0:00:53]} 40. Bd1 {[%emt 0:00:40]} Ra6 {[%emt 0:01:20]} 41. Be2 {[%emt 0:00:38] Hoping for Rd5+.} Ra7 {[%emt 0:00:22]} (41... Ke7 $16 {was necessary.}) 42. Bc4 {[%emt 0:00:10]} (42. Rd5+ $18 Ke7 43. Rb5) 42... Kc7 {[%emt 0:00:47] [#]} (42... Ke7 $16) 43. h4 $1 $18 {[%emt 0:01:32]} Ra6 $2 {[%emt 0:01:17]} (43... h5 44. Rd5 Nb6) 44. Rxf5 {[%emt 0:01:59]} gxf5 {[%emt 0:00:34]} (44... Rd6+ $142 45. Rd5 Rxd5+ 46. Bxd5 Nb6) 45. Bxa6 {[%emt 0:00:02] KB-KN. White is clearly winning.} Kd6 {[%emt 0:00:09]} 46. Bd3 {[%emt 0:01:09]} Nc5 {[%emt 0:00:56]} 47. Bc2 {[%emt 0:00:04]} Ne6+ {[%emt 0:00:26]} 48. Kc4 {[%emt 0:00:13]} Ng7 {[%emt 0:00:09]} 49. Bd1 {[%emt 0:00:55] Threatens to win with Kb5.} Ne6 {[%emt 0:00:13]} 50. Kb5 {[%emt 0:00:43]} Nd4+ {[%emt 0:01:04]} 51. Kxa5 {[%emt 0:00:16] Black must now prevent Kb6.} Kc5 {[%emt 0:00:02]} 52. Ka6 {[%emt 0:00:25]} Nc6 {[%emt 0:00:48]} 53. Kb7 {[%emt 0:00:50] And now Kc7 would win.} Nb4 {[%emt 0:00:06]} 54. a5 {[%emt 0:00:28]} Kd4 {[%emt 0:00:17] [#]} 55. Bc2 $1 {[%emt 0:01:39][%mdl 512]} Ke3 {[%emt 0:00:15]} (55... Nxc2 56. a6) 56. Bxf5 {[%emt 0:00:10]} Kf3 {[%emt 0:00:05]} 57. g4 {[%emt 0:00:19]} ({Weaker is} 57. a6 Nxa6 58. Bc2 (58. Kxa6 Kxg3 59. Bg6 Kxf4 $11) 58... Nb4 $18) 57... Kxf4 {[%emt 0:00:04]} 58. h5 {[%emt 0:00:20] Weighted Error Value: White=0.11 (very precise) /Black=0.29 (precise)} 1-0